{"text_format":"1","workbook":"xlsx","n_sheets":2,"sheets":["Аналіз рентабельності","Діаграма зведених показників"],"not_rendered":{"charts":1,"images":0,"macros":0,"external_links":0,"defined_names":3,"comments":0,"pivot_tables":0},"unopened":[],"bounds":{"document_bytes":16777216,"sheet_cells":100000,"rows_first":2000,"rows_last":500,"rows_between":2000,"halvings":0,"cell_chars":16384,"cell_head_chars":4096},"cells_cut":0,"cells_raw":0,"read":"whole","date_system":"1900"}

{"sheet":"Аналіз рентабельності","index":0,"n_rows":36,"n_cols":8,"rows_kept":36,"cut":false,"hidden":false,"merged":[[30,1,30,5],[2,3,2,7],[10,1,10,5],[14,1,14,5],[21,1,21,5],[27,1,27,5]]}
[]
[null,"Аналіз прибутковості клієнтів"]
[null,"20 січня 2013 р.",null,"НАЗВА КОМПАНІЇ"]
[]
[]
[null,"Активність клієнтів","Клієнт 1","Клієнт 2","Клієнт 3","Разом",null," "]
[null,"Кількість активних клієнтів на початок періоду",5,8,8,{"$f":"SUM(C7:E7)","v":21}]
[null,"Кількість нових клієнтів",2,4,4,{"$f":"SUM(C8:E8)","v":10}]
[null,"Кількість втрачених клієнтів\nабо таких, термін дії угоди з якими завершено ",-1,-2,-2,-5]
[null,"Кількість активних клієнтів на кінець періоду",{"$f":"SUBTOTAL(109,'Аналіз рентабельності'!$C$7:$C$9)","v":6},{"$f":"SUBTOTAL(109,'Аналіз рентабельності'!$D$7:$D$9)","v":10},{"$f":"SUBTOTAL(109,'Аналіз рентабельності'!$E$7:$E$9)","v":10},26]
[]
[null,"Аналіз прибутковості"," ","  ","   ","    "]
[null,"Прибуток на сегмент",1500000,1800000,2500000,{"$f":"SUM('Аналіз рентабельності'!$C13:$E13)","v":5800000}]
[null,"Ваговий відсоток",{"$f":"C13/$F$13","v":0.25862068965517243},{"$f":"D13/$F$13","v":0.31034482758620691},0.43103448275862066,{"$f":"SUM(C14:E14)","v":1}]
[]
[null,"Вартість продажів"," ","  ","   ","    "]
[null,"Поточні витрати на обслуговування та підтримку",1000000,1400000,1400000,{"$f":"SUM('Аналіз рентабельності'!$C17:$E17)","v":3800000}]
[null,"Інші прямі витрати на обслуговування клієнтів",200000,100000,100000,{"$f":"SUM('Аналіз рентабельності'!$C18:$E18)","v":400000}]
[null,"Загальна вартість продажів",{"$f":"SUBTOTAL(109,'Аналіз рентабельності'!$C$17:$C$18)","v":1200000},{"$f":"SUBTOTAL(109,'Аналіз рентабельності'!$D$17:$D$18)","v":1500000},{"$f":"SUBTOTAL(109,'Аналіз рентабельності'!$E$17:$E$18)","v":1500000},{"$f":"SUBTOTAL(109,'Аналіз рентабельності'!$F$17:$F$18)","v":4200000}]
[null,"Валовий прибуток",{"$f":"C13-'Аналіз рентабельності'!$C$19","v":300000},{"$f":"D13-'Аналіз рентабельності'!$D$19","v":300000},{"$f":"E13-'Аналіз рентабельності'!$E$19","v":1000000},{"$f":"F13-'Аналіз рентабельності'!$F$19","v":1600000}]
[null,"Ваговий відсоток",{"$f":"MAX(0,MIN(1,C20/$F$20))","v":0.1875},{"$f":"MAX(0,MIN(1,D20/$F$20))","v":0.1875},0.625,{"$f":"SUM('Аналіз рентабельності'!$C21:$E21)","v":1}]
[]
[null,"Інші витрати"," ","  ","   ","    "]
[null,"Залучення клієнтів",105000,120000,235000,{"$f":"SUM('Аналіз рентабельності'!$C24:$E24)","v":460000}]
[null,"Клієнтурний маркетинг",150000,125000,275000,{"$f":"SUM('Аналіз рентабельності'!$C25:$E25)","v":550000}]
[null,"Завершення терміну дії угоди",80000,190000,140000,{"$f":"SUM('Аналіз рентабельності'!$C26:$E26)","v":410000}]
[null,"Загальні витрати",{"$f":"SUBTOTAL(109,'Аналіз рентабельності'!$C$24:$C$26)","v":335000},{"$f":"SUBTOTAL(109,'Аналіз рентабельності'!$D$24:$D$26)","v":435000},{"$f":"SUBTOTAL(109,'Аналіз рентабельності'!$E$24:$E$26)","v":650000},{"$f":"SUBTOTAL(109,'Аналіз рентабельності'!$F$24:$F$26)","v":1420000}]
[]
[null,"Дохід від клієнтів за сегментами",{"$f":"C20-C27","v":-35000},{"$f":"D20-D27","v":-135000},{"$f":"E20-E27","v":350000},{"$f":"F20-'Аналіз рентабельності'!$F$27","v":180000}]
[null,"Ваговий відсоток",{"$f":"MAX(0,MIN(1,C29/$F$29))","v":0},{"$f":"MAX(0,MIN(1,D29/$F$29))","v":0},1,{"$f":"SUM('Аналіз рентабельності'!$C30:$E30)","v":1}]
[]
[null,"Зведені показники"]
[null,"Середня вартість залучення одного клієнта",{"$f":"C24/C8","v":52500},{"$f":"D24/D8","v":30000},{"$f":"E24/E8","v":58750}]
[null,"Середня вартість завершення угоди з одним клієнтом",{"$f":"-C26/C9","v":80000},{"$f":"-D26/D9","v":95000},{"$f":"-E26/E9","v":70000}]
[null,"Середня маркетингова вартість одного активного клієнта",{"$f":"C25/'Аналіз рентабельності'!$C$10","v":25000},{"$f":"D25/'Аналіз рентабельності'!$D$10","v":12500},{"$f":"E25/'Аналіз рентабельності'!$E$10","v":27500}]
[null,"Середній дохід або збиток від одного клієнта",{"$f":"C29/'Аналіз рентабельності'!$C$10","v":-5833.333333333333},{"$f":"D29/'Аналіз рентабельності'!$D$10","v":-13500},{"$f":"E29/'Аналіз рентабельності'!$E$10","v":35000}]

{"sheet":"Діаграма зведених показників","index":1,"n_rows":3,"n_cols":18,"rows_kept":3,"cut":false,"hidden":false,"merged":[]}
[]
[null,"Зведені показники по одному клієнту",null,null,null,null,null,null,null,null,null,null,null,null,null," "]
[null,{"$f":"ДатаЗвіту","v":"20 січня 2013 р."},null,null,null,null,null,null,null,null,null,null,null,null,null,null,null,{"$f":"НазваКомпанії","v":"НАЗВА КОМПАНІЇ"}]